[Event "Titled Tuesday Blitz July 18 Early 2023"]
[White "Lana Rodriguez, David"]
[Black "Rosh Jain"]
[WhiteFideId "2270803"]
[BlackFideId "25789465"]
[WhiteElo "2567"]
[BlackElo "2438"]
[Result "1-0"]
[Round "10"]
[TimeControl "180+2"]
[Date "2023.07.18"]
[WhiteClock "0:01:12"]
[BlackClock "0:00:04"]
[Board "72"]

1. e4 {[%clk 0:02:51]}  c5 {[%clk 0:02:59]} 2. Nf3 {[%clk 0:02:51]}  d6 {[%clk 0:02:59]} 3. d4 {[%clk 0:02:51]}  cxd4 {[%clk 0:03:00]} 4. Qxd4 {[%clk 0:02:51]}  Nf6 {[%clk 0:03:01]} 5. Be2 {[%clk 0:02:50]}  Nc6 {[%clk 0:03:01]} 6. Qe3 {[%clk 0:02:51]}  g6 {[%clk 0:03:00]} 7. O-O {[%clk 0:02:51]}  Bg7 {[%clk 0:03:00]} 8. Rd1 {[%clk 0:02:52]}  Qc7 {[%clk 0:02:58]} 9. h3 {[%clk 0:02:52]}  O-O {[%clk 0:02:58]} 10. c4 {[%clk 0:02:52]}  Bd7 {[%clk 0:02:58]} 11. Nc3 {[%clk 0:02:52]}  a6 {[%clk 0:02:53]} 12. Rb1 {[%clk 0:02:53]}  Rac8 {[%clk 0:02:53]} 13. b3 {[%clk 0:02:53]}  Be6 {[%clk 0:02:49]} 14. Bb2 {[%clk 0:02:52]}  Nd7 {[%clk 0:02:48]} 15. Rdc1 {[%clk 0:02:47]}  Qb8 {[%clk 0:02:34]} 16. Ng5 {[%clk 0:02:44]}  Nc5 {[%clk 0:02:24]} 17. Nxe6 {[%clk 0:02:42]}  Nxe6 {[%clk 0:02:25]} 18. Nd5 {[%clk 0:02:41]}  Nc5 {[%clk 0:02:13]} 19. Bxg7 {[%clk 0:02:39]}  Kxg7 {[%clk 0:02:13]} 20. Bg4 {[%clk 0:02:39]}  e6 {[%clk 0:02:11]} 21. Nc3 {[%clk 0:02:36]}  Ne5 {[%clk 0:02:03]} 22. Be2 {[%clk 0:02:35]}  Rfd8 {[%clk 0:01:46]} 23. Rd1 {[%clk 0:02:35]}  Nc6 {[%clk 0:01:42]} 24. Rd2 {[%clk 0:02:35]}  Nd7 {[%clk 0:01:39]} 25. Rbd1 {[%clk 0:02:33]}  Nf6 {[%clk 0:01:39]} 26. Bf3 {[%clk 0:02:26]}  Qc7 {[%clk 0:01:36]} 27. Qf4 {[%clk 0:02:23]}  Ne5 {[%clk 0:01:33]} 28. Ne2 {[%clk 0:02:11]}  Qc6 {[%clk 0:01:19]} 29. Qe3 {[%clk 0:02:08]}  Nxf3+ {[%clk 0:01:18]} 30. Qxf3 {[%clk 0:02:06]}  Nxe4 {[%clk 0:01:11]} 31. Rd4 {[%clk 0:02:00]}  Nc5 {[%clk 0:00:58]} 32. Qc3 {[%clk 0:01:56]}  Kg8 {[%clk 0:00:55]} 33. Qd2 {[%clk 0:01:54]}  Ne4 {[%clk 0:00:45]} 34. Qd3 {[%clk 0:01:54]}  d5 {[%clk 0:00:45]} 35. cxd5 {[%clk 0:01:53]}  exd5 {[%clk 0:00:46]} 36. Nf4 {[%clk 0:01:44]}  Nf6 {[%clk 0:00:32]} 37. Qf3 {[%clk 0:01:37]}  Qc3 {[%clk 0:00:22]} 38. Qe2 {[%clk 0:01:32]}  Qc2 {[%clk 0:00:15]} 39. Qe5 {[%clk 0:01:28]}  Ne4 {[%clk 0:00:11]} 40. Nxd5 {[%clk 0:01:13]}  Qxf2+ {[%clk 0:00:10]} 41. Kh2 {[%clk 0:01:12]}  Nc5 {[%clk 0:00:04]} 42. Ne7+ {[%clk 0:01:10]}  Kf8 {[%clk 0:00:04]} 43. Rxd8+ {[%clk 0:01:11]}  Rxd8 {[%clk 0:00:04]} 44. Rxd8# {[%clk 0:01:12]} 1-0


[Site "https://www.chess.com"]

[Event "Titled Tuesday Blitz July 18 Early 2023"]
[White "Portela Peleteiro, Alberto"]
[Black "Gabdushev, Ruslan"]
[WhiteFideId "22276106"]
[BlackFideId "4137833"]
[WhiteElo "2562"]
[BlackElo "2432"]
[Result "1/2-1/2"]
[Round "10"]
[TimeControl "180+2"]
[Date "2023.07.18"]
[WhiteClock "0:00:10"]
[BlackClock "0:00:04"]
[Board "73"]

1. e4 {[%clk 0:03:00]}  Nc6 {[%clk 0:02:59]} 2. Nc3 {[%clk 0:03:00]}  e6 {[%clk 0:02:58]} 3. d4 {[%clk 0:02:55]}  Bb4 {[%clk 0:02:58]} 4. a3 {[%clk 0:02:44]}  Bxc3+ {[%clk 0:02:56]} 5. bxc3 {[%clk 0:02:45]}  d6 {[%clk 0:02:56]} 6. Qg4 {[%clk 0:02:42]}  Kf8 {[%clk 0:02:42]} 7. Qd1 {[%clk 0:02:32]}  e5 {[%clk 0:02:33]} 8. Nf3 {[%clk 0:02:32]}  Bg4 {[%clk 0:02:31]} 9. Be3 {[%clk 0:02:31]}  Nf6 {[%clk 0:02:29]} 10. h3 {[%clk 0:02:29]}  Bh5 {[%clk 0:02:27]} 11. Bd3 {[%clk 0:02:30]}  Qe7 {[%clk 0:02:16]} 12. d5 {[%clk 0:02:27]}  Na5 {[%clk 0:02:14]} 13. O-O {[%clk 0:02:15]}  b6 {[%clk 0:02:08]} 14. g4 {[%clk 0:02:01]}  Bg6 {[%clk 0:02:06]} 15. Nd2 {[%clk 0:02:01]}  Nb7 {[%clk 0:01:54]} 16. h4 {[%clk 0:01:45]}  h6 {[%clk 0:01:50]} 17. f3 {[%clk 0:01:38]}  Nd7 {[%clk 0:01:47]} 18. Qe1 {[%clk 0:01:37]}  Nbc5 {[%clk 0:01:45]} 19. Qg3 {[%clk 0:01:35]}  h5 {[%clk 0:01:21]} 20. g5 {[%clk 0:01:32]}  Kg8 {[%clk 0:01:19]} 21. Rae1 {[%clk 0:01:31]}  Kh7 {[%clk 0:01:18]} 22. Bb5 {[%clk 0:01:22]}  a6 {[%clk 0:01:09]} 23. Bd3 {[%clk 0:01:14]}  Na4 {[%clk 0:01:02]} 24. c4 {[%clk 0:01:07]}  Rae8 {[%clk 0:00:57]} 25. Qh3 {[%clk 0:00:59]}  Nac5 {[%clk 0:00:54]} 26. Bf2 {[%clk 0:00:53]}  Rhf8 {[%clk 0:00:48]} 27. Bg3 {[%clk 0:00:51]}  f6 {[%clk 0:00:44]} 28. gxf6 {[%clk 0:00:44]}  Rxf6 {[%clk 0:00:42]} 29. Kh2 {[%clk 0:00:35]}  Ref8 {[%clk 0:00:40]} 30. Bf2 {[%clk 0:00:33]}  Rf4 {[%clk 0:00:36]} 31. Bg3 {[%clk 0:00:32]}  Nxd3 {[%clk 0:00:32]} 32. cxd3 {[%clk 0:00:31]}  Nc5 {[%clk 0:00:32]} 33. Re3 {[%clk 0:00:28]}  R4f6 {[%clk 0:00:30]} 34. Rg1 {[%clk 0:00:28]}  Be8 {[%clk 0:00:28]} 35. Bf2 {[%clk 0:00:24]}  Bd7 {[%clk 0:00:26]} 36. Qg3 {[%clk 0:00:21]}  Qf7 {[%clk 0:00:25]} 37. Qg5 {[%clk 0:00:13]}  Rf4 {[%clk 0:00:20]} 38. Bg3 {[%clk 0:00:10]}  Rf6 {[%clk 0:00:18]} 39. Be1 {[%clk 0:00:10]}  g6 {[%clk 0:00:16]} 40. Rg3 {[%clk 0:00:07]}  Rf4 {[%clk 0:00:15]} 41. Nf1 {[%clk 0:00:07]}  Qf6 {[%clk 0:00:13]} 42. Qxf6 {[%clk 0:00:06]}  R8xf6 {[%clk 0:00:12]} 43. Rg2 {[%clk 0:00:06]}  Rxf3 {[%clk 0:00:09]} 44. Rxf3 {[%clk 0:00:05]}  Rxf3 {[%clk 0:00:10]} 45. Nd2 {[%clk 0:00:04]}  Rxd3 {[%clk 0:00:09]} 46. Rf2 {[%clk 0:00:05]}  Kg7 {[%clk 0:00:08]} 47. Nf3 {[%clk 0:00:05]}  Nxe4 {[%clk 0:00:07]} 48. Rf1 {[%clk 0:00:05]}  Re3 {[%clk 0:00:06]} 49. Bg3 {[%clk 0:00:03]}  Re2+ {[%clk 0:00:05]} 50. Kg1 {[%clk 0:00:03]}  Bg4 {[%clk 0:00:04]} 51. Ng5 {[%clk 0:00:02]}  Nxg5 {[%clk 0:00:04]} 52. hxg5 {[%clk 0:00:03]}  Bf5 {[%clk 0:00:04]} 53. Be1 {[%clk 0:00:03]}  Ra2 {[%clk 0:00:04]} 54. Rf3 {[%clk 0:00:03]}  a5 {[%clk 0:00:03]} 55. c5 {[%clk 0:00:02]}  bxc5 {[%clk 0:00:02]} 56. Rb3 {[%clk 0:00:02]}  Ra1 {[%clk 0:00:02]} 57. Kf2 {[%clk 0:00:02]}  Bc2 {[%clk 0:00:02]} 58. Rb7 {[%clk 0:00:03]}  c4 {[%clk 0:00:01]} 59. Rxc7+ {[%clk 0:00:04]}  Kf8 {[%clk 0:00:01]} 60. Rxc4 {[%clk 0:00:05]}  Bd3 {[%clk 0:00:01]} 61. Rc7 {[%clk 0:00:05]}  e4 {[%clk 0:00:01]} 62. Bxa5 {[%clk 0:00:06]}  Ra2+ {[%clk 0:00:02]} 63. Ke3 {[%clk 0:00:06]}  Rxa3 {[%clk 0:00:03]} 64. Bb4 {[%clk 0:00:06]}  Ra6 {[%clk 0:00:03]} 65. Rd7 {[%clk 0:00:06]}  Ke8 {[%clk 0:00:02]} 66. Rxd6 {[%clk 0:00:06]}  Rxd6 {[%clk 0:00:02]} 67. Bxd6 {[%clk 0:00:07]}  Kd7 {[%clk 0:00:02]} 68. Bh2 {[%clk 0:00:07]}  h4 {[%clk 0:00:03]} 69. Kd4 {[%clk 0:00:08]}  Bc2 {[%clk 0:00:03]} 70. Ke3 {[%clk 0:00:08]}  Bd3 {[%clk 0:00:03]} 71. Kd4 {[%clk 0:00:09]}  Bc2 {[%clk 0:00:03]} 72. Ke3 {[%clk 0:00:10]}  Bd3 {[%clk 0:00:04]} 1/2-1/2


[Site "https://www.chess.com"]

[Event "Titled Tuesday Blitz July 18 Early 2023"]
[White "Fiorito, Joaquin"]
[Black "luksona14"]
[WhiteFideId "180173"]
[WhiteElo "2699"]
[BlackElo "2432"]
[Result "1-0"]
[Round "10"]
[TimeControl "180+2"]
[Date "2023.07.18"]
[WhiteClock "0:01:34"]
[BlackClock "0:01:17"]
[Board "75"]

1. d4 {[%clk 0:03:00]}  Nf6 {[%clk 0:02:59]} 2. Nc3 {[%clk 0:03:01]}  g6 {[%clk 0:02:59]} 3. e4 {[%clk 0:03:00]}  d6 {[%clk 0:03:00]} 4. Be3 {[%clk 0:03:01]}  Bg7 {[%clk 0:03:01]} 5. Qd2 {[%clk 0:03:01]}  a6 {[%clk 0:03:01]} 6. Bh6 {[%clk 0:03:00]}  Bxh6 {[%clk 0:03:01]} 7. Qxh6 {[%clk 0:03:01]}  b5 {[%clk 0:03:00]} 8. Bd3 {[%clk 0:03:01]}  Bb7 {[%clk 0:02:58]} 9. a3 {[%clk 0:02:55]}  Nbd7 {[%clk 0:02:56]} 10. Nf3 {[%clk 0:02:55]}  c5 {[%clk 0:02:55]} 11. O-O {[%clk 0:02:47]}  cxd4 {[%clk 0:02:55]} 12. Nxd4 {[%clk 0:02:48]}  Qb6 {[%clk 0:02:54]} 13. Nb3 {[%clk 0:02:43]}  Ne5 {[%clk 0:02:51]} 14. Rae1 {[%clk 0:02:41]}  Neg4 {[%clk 0:02:48]} 15. Qd2 {[%clk 0:02:39]}  O-O {[%clk 0:02:48]} 16. Kh1 {[%clk 0:02:38]}  Rac8 {[%clk 0:02:43]} 17. f4 {[%clk 0:02:37]}  h5 {[%clk 0:02:42]} 18. h3 {[%clk 0:02:33]}  Nh6 {[%clk 0:02:41]} 19. e5 {[%clk 0:02:24]}  Nd7 {[%clk 0:02:29]} 20. e6 {[%clk 0:02:20]}  Nf6 {[%clk 0:02:26]} 21. exf7+ {[%clk 0:02:16]}  Kxf7 {[%clk 0:02:25]} 22. f5 {[%clk 0:02:13]}  Nxf5 {[%clk 0:02:25]} 23. Bxf5 {[%clk 0:02:13]}  gxf5 {[%clk 0:02:26]} 24. Rxf5 {[%clk 0:02:08]}  Rg8 {[%clk 0:02:11]} 25. Nd5 {[%clk 0:01:54]}  Bxd5 {[%clk 0:02:02]} 26. Qxd5+ {[%clk 0:01:55]}  Kf8 {[%clk 0:01:58]} 27. Qe6 {[%clk 0:01:49]}  Qb7 {[%clk 0:01:49]} 28. Rxf6+ {[%clk 0:01:40]}  exf6 {[%clk 0:01:49]} 29. Qxf6+ {[%clk 0:01:40]}  Qf7 {[%clk 0:01:49]} 30. Qxd6+ {[%clk 0:01:41]}  Kg7 {[%clk 0:01:50]} 31. Re7 {[%clk 0:01:41]}  Qxe7 {[%clk 0:01:37]} 32. Qxe7+ {[%clk 0:01:40]}  Kh6 {[%clk 0:01:38]} 33. Nd4 {[%clk 0:01:36]}  Rcf8 {[%clk 0:01:17]} 34. Nf3 {[%clk 0:01:34]} 1-0


[Site "https://www.chess.com"]

[Event "Titled Tuesday Blitz July 18 Early 2023"]
[White "LangesNasenhaar"]
[Black "Ambartsumova, Karina"]
[BlackFideId "4166299"]
[WhiteElo "2449"]
[BlackElo "2574"]
[Result "0-1"]
[Round "10"]
[TimeControl "180+2"]
[Date "2023.07.18"]
[WhiteClock "0:00:05"]
[BlackClock "0:00:06"]
[Board "79"]

1. d4 {[%clk 0:03:00]}  d6 {[%clk 0:02:59]} 2. Nc3 {[%clk 0:03:00]}  g6 {[%clk 0:02:58]} 3. e4 {[%clk 0:02:59]}  Bg7 {[%clk 0:02:59]} 4. Bg5 {[%clk 0:03:00]}  Nd7 {[%clk 0:02:58]} 5. Qd2 {[%clk 0:02:59]}  a6 {[%clk 0:02:57]} 6. a4 {[%clk 0:02:58]}  b6 {[%clk 0:02:54]} 7. h4 {[%clk 0:02:57]}  h6 {[%clk 0:02:50]} 8. Be3 {[%clk 0:02:57]}  h5 {[%clk 0:02:50]} 9. Nh3 {[%clk 0:02:55]}  Bb7 {[%clk 0:02:49]} 10. Ng5 {[%clk 0:02:54]}  Ngf6 {[%clk 0:02:44]} 11. f3 {[%clk 0:02:54]}  c5 {[%clk 0:02:31]} 12. Bc4 {[%clk 0:02:47]}  O-O {[%clk 0:02:23]} 13. Rd1 {[%clk 0:02:35]}  Rc8 {[%clk 0:02:03]} 14. Qe2 {[%clk 0:02:31]}  cxd4 {[%clk 0:01:31]} 15. Bxd4 {[%clk 0:02:30]}  Qc7 {[%clk 0:01:30]} 16. Bxa6 {[%clk 0:02:24]}  Bxa6 {[%clk 0:01:30]} 17. Qxa6 {[%clk 0:02:24]}  d5 {[%clk 0:01:27]} 18. O-O {[%clk 0:02:11]}  e5 {[%clk 0:01:12]} 19. Bf2 {[%clk 0:02:03]}  d4 {[%clk 0:01:12]} 20. Ne2 {[%clk 0:01:36]}  Ra8 {[%clk 0:00:47]} 21. Qb5 {[%clk 0:01:33]}  Qxc2 {[%clk 0:00:46]} 22. Rc1 {[%clk 0:01:10]}  Qxa4 {[%clk 0:00:45]} 23. Qd3 {[%clk 0:00:44]}  Nc5 {[%clk 0:00:43]} 24. Qb1 {[%clk 0:00:43]}  Qb3 {[%clk 0:00:36]} 25. Rcd1 {[%clk 0:00:38]}  Rfd8 {[%clk 0:00:26]} 26. Nc1 {[%clk 0:00:37]}  Qb5 {[%clk 0:00:25]} 27. Nd3 {[%clk 0:00:34]}  Nfd7 {[%clk 0:00:22]} 28. b4 {[%clk 0:00:26]}  Na4 {[%clk 0:00:21]} 29. Qb3 {[%clk 0:00:24]}  Rf8 {[%clk 0:00:16]} 30. Ra1 {[%clk 0:00:23]}  Bf6 {[%clk 0:00:13]} 31. Bg3 {[%clk 0:00:22]}  Kg7 {[%clk 0:00:11]} 32. f4 {[%clk 0:00:22]}  Bxg5 {[%clk 0:00:11]} 33. hxg5 {[%clk 0:00:21]}  Nc3 {[%clk 0:00:07]} 34. Rxa8 {[%clk 0:00:19]}  Rxa8 {[%clk 0:00:08]} 35. f5 {[%clk 0:00:17]}  Qxd3 {[%clk 0:00:05]} 36. fxg6 {[%clk 0:00:16]}  Ne2+ {[%clk 0:00:05]} 37. Kf2 {[%clk 0:00:05]}  Qxb3 {[%clk 0:00:06]} 0-1


[Site "https://www.chess.com"]

[Event "Titled Tuesday Blitz July 18 Early 2023"]
[White "Chitlange Sakshi"]
[Black "Gontcharov, Vladislav"]
[WhiteFideId "35002899"]
[BlackFideId "4123492"]
[WhiteElo "2451"]
[BlackElo "2565"]
[Result "1-0"]
[Round "10"]
[TimeControl "180+2"]
[Date "2023.07.18"]
[WhiteClock "0:00:48"]
[BlackClock "0:00:50"]
[Board "81"]

1. Nf3 {[%clk 0:03:00]}  Nf6 {[%clk 0:02:57]} 2. d4 {[%clk 0:03:01]}  e6 {[%clk 0:02:56]} 3. Bf4 {[%clk 0:03:01]}  c5 {[%clk 0:02:55]} 4. e3 {[%clk 0:03:01]}  d5 {[%clk 0:02:54]} 5. Nbd2 {[%clk 0:03:00]}  Nc6 {[%clk 0:02:53]} 6. c3 {[%clk 0:03:00]}  Bd6 {[%clk 0:02:53]} 7. Bg3 {[%clk 0:03:00]}  Qc7 {[%clk 0:02:52]} 8. dxc5 {[%clk 0:02:59]}  Bxg3 {[%clk 0:02:50]} 9. hxg3 {[%clk 0:03:00]}  a5 {[%clk 0:02:46]} 10. Bb5 {[%clk 0:02:48]}  Bd7 {[%clk 0:02:44]} 11. Nd4 {[%clk 0:02:39]}  e5 {[%clk 0:02:26]} 12. Bxc6 {[%clk 0:02:32]}  bxc6 {[%clk 0:02:25]} 13. N4f3 {[%clk 0:02:29]}  O-O {[%clk 0:02:24]} 14. Qc2 {[%clk 0:02:28]}  h6 {[%clk 0:02:24]} 15. O-O {[%clk 0:02:18]}  Rfb8 {[%clk 0:02:15]} 16. c4 {[%clk 0:02:12]}  e4 {[%clk 0:02:04]} 17. Nd4 {[%clk 0:02:11]}  Qe5 {[%clk 0:02:04]} 18. cxd5 {[%clk 0:02:07]}  cxd5 {[%clk 0:02:03]} 19. Rfc1 {[%clk 0:02:04]}  Qh5 {[%clk 0:02:01]} 20. c6 {[%clk 0:01:59]}  Bc8 {[%clk 0:02:00]} 21. c7 {[%clk 0:01:45]}  Rb6 {[%clk 0:01:49]} 22. a4 {[%clk 0:01:28]}  Ng4 {[%clk 0:01:39]} 23. Nf1 {[%clk 0:01:28]}  Ba6 {[%clk 0:01:39]} 24. Nb5 {[%clk 0:01:25]}  Rc8 {[%clk 0:01:33]} 25. Qc5 {[%clk 0:01:22]}  Rb7 {[%clk 0:01:27]} 26. Qe7 {[%clk 0:01:12]}  Qf5 {[%clk 0:01:19]} 27. Rc2 {[%clk 0:01:08]}  Bxb5 {[%clk 0:01:18]} 28. axb5 {[%clk 0:01:08]}  Rxb5 {[%clk 0:01:19]} 29. Rac1 {[%clk 0:00:55]}  Kh7 {[%clk 0:01:18]} 30. Qd6 {[%clk 0:00:51]}  Qf6 {[%clk 0:01:07]} 31. Qd7 {[%clk 0:00:48]}  Qe6 {[%clk 0:00:50]} 32. Qxb5 {[%clk 0:00:48]} 1-0


[Site "https://www.chess.com"]

[Event "Titled Tuesday Blitz July 18 Early 2023"]
[White "ElenGajger"]
[Black "Vaglio Munoz, Jaime"]
[BlackFideId "6500145"]
[WhiteElo "2508"]
[BlackElo "2272"]
[Result "1-0"]
[Round "10"]
[TimeControl "180+2"]
[Date "2023.07.18"]
[WhiteClock "0:00:10"]
[BlackClock "0:00:11"]
[Board "90"]

1. e4 {[%clk 0:03:00]}  c5 {[%clk 0:02:51]} 2. Nc3 {[%clk 0:03:00]}  Qa5 {[%clk 0:02:50]} 3. Nf3 {[%clk 0:02:56]}  a6 {[%clk 0:02:50]} 4. d4 {[%clk 0:02:55]}  b5 {[%clk 0:02:51]} 5. dxc5 {[%clk 0:02:53]}  e6 {[%clk 0:02:51]} 6. Bd2 {[%clk 0:02:52]}  b4 {[%clk 0:02:52]} 7. Ne2 {[%clk 0:02:49]}  Bxc5 {[%clk 0:02:52]} 8. Ng3 {[%clk 0:02:45]}  Qb6 {[%clk 0:02:52]} 9. Qe2 {[%clk 0:02:43]}  Bb7 {[%clk 0:02:52]} 10. Ne5 {[%clk 0:02:34]}  Nc6 {[%clk 0:02:47]} 11. Nc4 {[%clk 0:02:28]}  Qc7 {[%clk 0:02:46]} 12. c3 {[%clk 0:02:23]}  Nf6 {[%clk 0:02:36]} 13. Nh5 {[%clk 0:02:17]}  Nxh5 {[%clk 0:02:11]} 14. Qxh5 {[%clk 0:02:15]}  Ne7 {[%clk 0:02:04]} 15. Bd3 {[%clk 0:02:11]}  d5 {[%clk 0:01:59]} 16. exd5 {[%clk 0:02:10]}  Bxd5 {[%clk 0:01:59]} 17. Ne3 {[%clk 0:01:33]}  Qb6 {[%clk 0:01:45]} 18. O-O {[%clk 0:01:28]}  h6 {[%clk 0:01:37]} 19. Nxd5 {[%clk 0:01:07]}  Nxd5 {[%clk 0:01:38]} 20. Be4 {[%clk 0:01:04]}  Rd8 {[%clk 0:01:37]} 21. Rad1 {[%clk 0:00:58]}  Nf6 {[%clk 0:01:35]} 22. Qf3 {[%clk 0:00:52]}  Nxe4 {[%clk 0:01:33]} 23. Qxe4 {[%clk 0:00:51]}  O-O {[%clk 0:01:32]} 24. cxb4 {[%clk 0:00:51]}  Bd4 {[%clk 0:01:11]} 25. b3 {[%clk 0:00:47]}  f5 {[%clk 0:01:08]} 26. Qe2 {[%clk 0:00:45]}  e5 {[%clk 0:01:08]} 27. Be3 {[%clk 0:00:43]}  Qxb4 {[%clk 0:01:00]} 28. Bxd4 {[%clk 0:00:40]}  exd4 {[%clk 0:00:59]} 29. Qxa6 {[%clk 0:00:40]}  f4 {[%clk 0:00:55]} 30. Qc4+ {[%clk 0:00:36]}  Qxc4 {[%clk 0:00:54]} 31. bxc4 {[%clk 0:00:37]}  d3 {[%clk 0:00:54]} 32. Rfe1 {[%clk 0:00:36]}  Rd4 {[%clk 0:00:54]} 33. c5 {[%clk 0:00:33]}  Rc8 {[%clk 0:00:53]} 34. Re5 {[%clk 0:00:33]}  d2 {[%clk 0:00:50]} 35. h3 {[%clk 0:00:29]}  f3 {[%clk 0:00:36]} 36. gxf3 {[%clk 0:00:27]}  Kf7 {[%clk 0:00:35]} 37. Kf1 {[%clk 0:00:26]}  Kf6 {[%clk 0:00:35]} 38. Re4 {[%clk 0:00:24]}  Rd3 {[%clk 0:00:34]} 39. Re3 {[%clk 0:00:23]}  Rd5 {[%clk 0:00:31]} 40. Rc3 {[%clk 0:00:20]}  Rc6 {[%clk 0:00:27]} 41. Ke2 {[%clk 0:00:18]}  Re6+ {[%clk 0:00:27]} 42. Re3 {[%clk 0:00:18]}  Rc6 {[%clk 0:00:27]} 43. Rxd2 {[%clk 0:00:18]}  Rdxc5 {[%clk 0:00:26]} 44. Red3 {[%clk 0:00:15]}  Ke7 {[%clk 0:00:24]} 45. Rd5 {[%clk 0:00:15]}  Rc4 {[%clk 0:00:23]} 46. Rd7+ {[%clk 0:00:15]}  Ke6 {[%clk 0:00:22]} 47. Rxg7 {[%clk 0:00:14]}  Kf6 {[%clk 0:00:21]} 48. Rgd7 {[%clk 0:00:14]}  Re6+ {[%clk 0:00:21]} 49. Kf1 {[%clk 0:00:13]}  Rh4 {[%clk 0:00:19]} 50. Kg2 {[%clk 0:00:12]}  Rh5 {[%clk 0:00:18]} 51. R7d6 {[%clk 0:00:12]}  Rg5+ {[%clk 0:00:17]} 52. Kf1 {[%clk 0:00:11]}  Ra5 {[%clk 0:00:17]} 53. Rxe6+ {[%clk 0:00:11]}  Kxe6 {[%clk 0:00:18]} 54. f4 {[%clk 0:00:11]}  Kf5 {[%clk 0:00:18]} 55. Rd4 {[%clk 0:00:10]}  Rxa2 {[%clk 0:00:17]} 56. Kg2 {[%clk 0:00:11]}  Ra3 {[%clk 0:00:14]} 57. f3 {[%clk 0:00:09]}  h5 {[%clk 0:00:14]} 58. Kg3 {[%clk 0:00:09]}  h4+ {[%clk 0:00:14]} 59. Kxh4 {[%clk 0:00:10]}  Rxf3 {[%clk 0:00:15]} 60. Rc4 {[%clk 0:00:09]}  Rf1 {[%clk 0:00:11]} 61. Rc8 {[%clk 0:00:09]}  Rg1 {[%clk 0:00:11]} 62. Rf8+ {[%clk 0:00:08]}  Kg6 {[%clk 0:00:11]} 63. Rg8+ {[%clk 0:00:08]}  Kf5 {[%clk 0:00:09]} 64. Rxg1 {[%clk 0:00:09]}  Kxf4 {[%clk 0:00:09]} 65. Kh5 {[%clk 0:00:09]}  Kf5 {[%clk 0:00:09]} 66. h4 {[%clk 0:00:09]}  Kf6 {[%clk 0:00:10]} 67. Kg4 {[%clk 0:00:09]}  Kg6 {[%clk 0:00:10]} 68. h5+ {[%clk 0:00:10]}  Kh6 {[%clk 0:00:11]} 69. Kh4 {[%clk 0:00:10]}  Kh7 {[%clk 0:00:11]} 70. Rg6 {[%clk 0:00:10]}  Kh8 {[%clk 0:00:10]} 71. Kg5 {[%clk 0:00:10]}  Kh7 {[%clk 0:00:11]} 72. Rf6 {[%clk 0:00:09]}  Kg7 {[%clk 0:00:11]} 73. h6+ {[%clk 0:00:09]}  Kh7 {[%clk 0:00:11]} 74. Rf7+ {[%clk 0:00:09]}  Kg8 {[%clk 0:00:11]} 75. Kg6 {[%clk 0:00:09]}  Kh8 {[%clk 0:00:11]} 76. Rf8# {[%clk 0:00:10]} 1-0


[Site "https://www.chess.com"]

[Event "Titled Tuesday Blitz July 18 Early 2023"]
[White "ArturoCaceres"]
[Black "Chor, Kevin"]
[BlackFideId "2090740"]
[WhiteElo "2400"]
[BlackElo "2541"]
[Result "1-0"]
[Round "10"]
[TimeControl "180+2"]
[Date "2023.07.18"]
[WhiteClock "0:00:04"]
[BlackClock "0:00:01"]
[Board "95"]

1. d4 {[%clk 0:03:00]}  Nf6 {[%clk 0:03:00]} 2. f3 {[%clk 0:03:01]}  g6 {[%clk 0:02:51]} 3. Kf2 {[%clk 0:03:01]}  Bg7 {[%clk 0:02:49]} 4. e3 {[%clk 0:03:02]}  O-O {[%clk 0:02:47]} 5. Bd3 {[%clk 0:03:02]}  c5 {[%clk 0:02:46]} 6. c3 {[%clk 0:03:02]}  b6 {[%clk 0:02:44]} 7. Ne2 {[%clk 0:03:01]}  Bb7 {[%clk 0:02:44]} 8. h4 {[%clk 0:02:55]}  Nc6 {[%clk 0:02:43]} 9. Ng3 {[%clk 0:02:53]}  e5 {[%clk 0:02:40]} 10. dxc5 {[%clk 0:02:50]}  bxc5 {[%clk 0:02:39]} 11. e4 {[%clk 0:02:50]}  d5 {[%clk 0:02:38]} 12. exd5 {[%clk 0:02:50]}  Nxd5 {[%clk 0:02:32]} 13. h5 {[%clk 0:02:47]}  Nf4 {[%clk 0:02:31]} 14. Bc4 {[%clk 0:02:36]}  Qe7 {[%clk 0:02:23]} 15. hxg6 {[%clk 0:02:24]}  hxg6 {[%clk 0:02:23]} 16. Be3 {[%clk 0:02:00]}  Na5 {[%clk 0:02:19]} 17. Be2 {[%clk 0:01:48]}  Rfd8 {[%clk 0:02:12]} 18. Qc2 {[%clk 0:01:48]}  Nxe2 {[%clk 0:01:53]} 19. Qxe2 {[%clk 0:01:48]}  f5 {[%clk 0:01:48]} 20. Nd2 {[%clk 0:01:36]}  Qf6 {[%clk 0:01:27]} 21. Bxc5 {[%clk 0:01:29]}  Ba6 {[%clk 0:01:14]} 22. Qe1 {[%clk 0:01:23]}  Rac8 {[%clk 0:01:09]} 23. Bxa7 {[%clk 0:01:12]}  Rd3 {[%clk 0:00:55]} 24. b4 {[%clk 0:00:57]}  Rcd8 {[%clk 0:00:51]} 25. Nb3 {[%clk 0:00:43]}  Nc4 {[%clk 0:00:40]} 26. Nf1 {[%clk 0:00:23]}  e4 {[%clk 0:00:32]} 27. Bd4 {[%clk 0:00:20]}  R8xd4 {[%clk 0:00:21]} 28. Nxd4 {[%clk 0:00:20]}  Rxd4 {[%clk 0:00:19]} 29. cxd4 {[%clk 0:00:20]}  Qxd4+ {[%clk 0:00:20]} 30. Ne3 {[%clk 0:00:14]}  f4 {[%clk 0:00:20]} 31. Rd1 {[%clk 0:00:13]}  fxe3+ {[%clk 0:00:20]} 32. Kg3 {[%clk 0:00:13]}  Qe5+ {[%clk 0:00:13]} 33. f4 {[%clk 0:00:13]}  Qe7 {[%clk 0:00:13]} 34. a4 {[%clk 0:00:12]}  Bc8 {[%clk 0:00:08]} 35. Rc1 {[%clk 0:00:10]}  Be6 {[%clk 0:00:08]} 36. Kh2 {[%clk 0:00:08]}  Qf6 {[%clk 0:00:06]} 37. Qg3 {[%clk 0:00:08]}  e2 {[%clk 0:00:06]} 38. Rhe1 {[%clk 0:00:08]}  Qb2 {[%clk 0:00:05]} 39. b5 {[%clk 0:00:07]}  Bf5 {[%clk 0:00:05]} 40. Rxc4 {[%clk 0:00:07]}  Qd2 {[%clk 0:00:04]} 41. Rcc1 {[%clk 0:00:07]}  Bd4 {[%clk 0:00:03]} 42. a5 {[%clk 0:00:06]}  Qxa5 {[%clk 0:00:03]} 43. Rxe2 {[%clk 0:00:06]}  Qxb5 {[%clk 0:00:04]} 44. Rce1 {[%clk 0:00:06]}  Qd7 {[%clk 0:00:04]} 45. Rxe4 {[%clk 0:00:05]}  Bxe4 {[%clk 0:00:04]} 46. Rxe4 {[%clk 0:00:06]}  Qg7 {[%clk 0:00:04]} 47. f5 {[%clk 0:00:03]}  gxf5 {[%clk 0:00:01]} 48. Rxd4 {[%clk 0:00:04]} 1-0


[Site "https://www.chess.com"]